{"text_format":"3","workbook":"xlsx","n_sheets":3,"sheets":["Leadgegevens","Verkoopprognose ","Maandelijks gewogen prognose"],"not_rendered":{"charts":1,"defined_names":10},"read":"whole","date_system":"1900"}

{"sheet":"Leadgegevens","index":0,"n_rows":9,"n_cols":10,"rows_kept":9,"merged":[[3,1,3,8]]}
[null,"Bedrijfsnaam"]
[null,"Gedetailleerde leadtracker"]
[null,{"$f":"TODAY()","v":"2018-07-25"}]
[null,{"$f":"Bedrijfsnaam","v":"Bedrijfsnaam"},{"$nulls":7},"VERTROUWELIJK"]
[null,"Leadnaam","Contactpersoon van lead","Bron van lead","Regio van lead","Type lead","Verkoopkans","Percentage \nverkoopkans","Sluiting prognose","Gewogen prognose"]
[null,"A. Datum Corporation",{"$nulls":3},"Strategisch",{"v":300000,"d":"€ 300,000.00"},{"v":0.9,"d":"90%"},"januari",{"$f":"IFERROR(IF(Leadgegevens[Percentage \nverkoopkans]<>\"\",Leadgegevens[Percentage \nverkoopkans]*Leadgegevens[Verkoopkans],\"\"),\"\")","v":{"v":270000,"d":"€ 270,000.00"}}]
[null,"Adventure Works",{"$nulls":3},"Strategisch",{"v":200000,"d":"€ 200,000.00"},{"v":0.1,"d":"10%"},"februari",{"$f":"IFERROR(IF(Leadgegevens[Percentage \nverkoopkans]<>\"\",Leadgegevens[Percentage \nverkoopkans]*Leadgegevens[Verkoopkans],\"\"),\"\")","v":{"v":20000,"d":"€ 20,000.00"}}]
[null,"Alpine Ski House",{"$nulls":3},"Tactisch",{"v":100000,"d":"€ 100,000.00"},{"v":0.2,"d":"20%"},"maart",{"$f":"IFERROR(IF(Leadgegevens[Percentage \nverkoopkans]<>\"\",Leadgegevens[Percentage \nverkoopkans]*Leadgegevens[Verkoopkans],\"\"),\"\")","v":{"v":20000,"d":"€ 20,000.00"}}]
[null,"Totaal",{"$nulls":4},{"$f":"SUBTOTAL(109,Leadgegevens[Verkoopkans])","v":{"v":600000,"d":"€ 600,000.00"}},null,null,{"$f":"SUBTOTAL(109,Leadgegevens[Gewogen prognose])","v":{"v":310000,"d":"€ 310,000.00"}}]

{"sheet":"Verkoopprognose ","index":1,"n_rows":21,"n_cols":14,"rows_kept":21,"merged":[[3,1,3,11],[3,12,3,13]]}
[null,{"$f":"Bedrijfsnaam","v":"Bedrijfsnaam"}]
[null,"Verkoopprognose"]
[null,{"$f":"TrackerDatum","v":"2018-07-25"}]
[null,{"$f":"Bedrijfsnaam","v":"Bedrijfsnaam"},{"$nulls":10},"VERTROUWELIJK"]
[null,"Leadnaam","Januari \nPrognose","Februari \nPrognose","Maart \nPrognose","April \nPrognose","Mei \nPrognose","Juni \nPrognose","Juli Prognose","Augustus \nPrognose","September \nPrognose","Oktober \nPrognose","November \nPrognose","December \nPrognose"]
[null,{"$f":"IFERROR(IF(AND(Leadgegevens[Leadnaam] <> \"\", ROW(Verkoopprognose[Leadnaam])<>LastEntry),Leadgegevens[Leadnaam], \"\"),\"\")","v":"A. Datum Corporation"},{"$f":"IFERROR(IF(Leadgegevens[Sluiting prognose] <>\"\",IF(Leadgegevens[Sluiting prognose]= \"Januari\",Leadgegevens[Gewogen prognose],0),\"\"),\"\")","v":{"v":270000,"d":"€ 270,000"}},{"$f":"IFERROR(IF(Leadgegevens[Sluiting prognose] <>\"\",IF(Leadgegevens[Sluiting prognose] = \"Februari\",Leadgegevens[Gewogen prognose],0),\"\"),\"\")","v":{"v":0,"d":"€ 0"}},{"$f":"IFERROR(IF(Leadgegevens[Sluiting prognose] <>\"\",IF(Leadgegevens[Sluiting prognose] = \"Maart\",Leadgegevens[Gewogen prognose],0),\"\"),\"\")","v":{"v":0,"d":"€ 0"}},{"$f":"IFERROR(IF(Leadgegevens[Sluiting prognose] <>\"\",IF(Leadgegevens[Sluiting prognose] = \"April\",Leadgegevens[Gewogen prognose],0),\"\"),\"\")","v":{"v":0,"d":"€ 0"}},{"$f":"IFERROR(IF(Leadgegevens[Sluiting prognose] <>\"\",IF(Leadgegevens[Sluiting prognose] = \"Mei\",Leadgegevens[Gewogen prognose],0),\"\"),\"\")","v":{"v":0,"d":"€ 0"}},{"$f":"IFERROR(IF(Leadgegevens[Sluiting prognose] <>\"\",IF(Leadgegevens[Sluiting prognose] = \"Juni\",Leadgegevens[Gewogen prognose],0),\"\"),\"\")","v":{"v":0,"d":"€ 0"}},{"$f":"IFERROR(IF(Leadgegevens[Sluiting prognose] <>\"\",IF(Leadgegevens[Sluiting prognose] = \"Juli\",Leadgegevens[Gewogen prognose],0),\"\"),\"\")","v":{"v":0,"d":"€ 0"}},{"$f":"IFERROR(IF(Leadgegevens[Sluiting prognose] <>\"\",IF(Leadgegevens[Sluiting prognose] = \"Augustus\",Leadgegevens[Gewogen prognose],0),\"\"),\"\")","v":{"v":0,"d":"€ 0"}},{"$f":"IFERROR(IF(Leadgegevens[Sluiting prognose] <>\"\",IF(Leadgegevens[Sluiting prognose] = \"September\",Leadgegevens[Gewogen prognose],0),\"\"),\"\")","v":{"v":0,"d":"€ 0"}},{"$f":"IFERROR(IF(Leadgegevens[Sluiting prognose] <>\"\",IF(Leadgegevens[Sluiting prognose] = \"Oktober\",Leadgegevens[Gewogen prognose],0),\"\"),\"\")","v":{"v":0,"d":"€ 0"}},{"$f":"IFERROR(IF(Leadgegevens[Sluiting prognose] <>\"\",IF(Leadgegevens[Sluiting prognose] = \"November\",Leadgegevens[Gewogen prognose],0),\"\"),\"\")","v":{"v":0,"d":"€ 0"}},{"$f":"IFERROR(IF(Leadgegevens[Sluiting prognose] <>\"\",IF(Leadgegevens[Sluiting prognose] = \"December\",Leadgegevens[Gewogen prognose],0),\"\"),\"\")","v":{"v":0,"d":"€ 0"}}]
[null,{"$f":"IFERROR(IF(AND(Leadgegevens[Leadnaam] <> \"\", ROW(Verkoopprognose[Leadnaam])<>LastEntry),Leadgegevens[Leadnaam], \"\"),\"\")","v":"Adventure Works"},{"$f":"IFERROR(IF(Leadgegevens[Sluiting prognose] <>\"\",IF(Leadgegevens[Sluiting prognose]= \"Januari\",Leadgegevens[Gewogen prognose],0),\"\"),\"\")","v":{"v":0,"d":"€ 0"}},{"$f":"IFERROR(IF(Leadgegevens[Sluiting prognose] <>\"\",IF(Leadgegevens[Sluiting prognose] = \"Februari\",Leadgegevens[Gewogen prognose],0),\"\"),\"\")","v":{"v":20000,"d":"€ 20,000"}},{"$f":"IFERROR(IF(Leadgegevens[Sluiting prognose] <>\"\",IF(Leadgegevens[Sluiting prognose] = \"Maart\",Leadgegevens[Gewogen prognose],0),\"\"),\"\")","v":{"v":0,"d":"€ 0"}},{"$f":"IFERROR(IF(Leadgegevens[Sluiting prognose] <>\"\",IF(Leadgegevens[Sluiting prognose] = \"April\",Leadgegevens[Gewogen prognose],0),\"\"),\"\")","v":{"v":0,"d":"€ 0"}},{"$f":"IFERROR(IF(Leadgegevens[Sluiting prognose] <>\"\",IF(Leadgegevens[Sluiting prognose] = \"Mei\",Leadgegevens[Gewogen prognose],0),\"\"),\"\")","v":{"v":0,"d":"€ 0"}},{"$f":"IFERROR(IF(Leadgegevens[Sluiting prognose] <>\"\",IF(Leadgegevens[Sluiting prognose] = \"Juni\",Leadgegevens[Gewogen prognose],0),\"\"),\"\")","v":{"v":0,"d":"€ 0"}},{"$f":"IFERROR(IF(Leadgegevens[Sluiting prognose] <>\"\",IF(Leadgegevens[Sluiting prognose] = \"Juli\",Leadgegevens[Gewogen prognose],0),\"\"),\"\")","v":{"v":0,"d":"€ 0"}},{"$f":"IFERROR(IF(Leadgegevens[Sluiting prognose] <>\"\",IF(Leadgegevens[Sluiting prognose] = \"Augustus\",Leadgegevens[Gewogen prognose],0),\"\"),\"\")","v":{"v":0,"d":"€ 0"}},{"$f":"IFERROR(IF(Leadgegevens[Sluiting prognose] <>\"\",IF(Leadgegevens[Sluiting prognose] = \"September\",Leadgegevens[Gewogen prognose],0),\"\"),\"\")","v":{"v":0,"d":"€ 0"}},{"$f":"IFERROR(IF(Leadgegevens[Sluiting prognose] <>\"\",IF(Leadgegevens[Sluiting prognose] = \"Oktober\",Leadgegevens[Gewogen prognose],0),\"\"),\"\")","v":{"v":0,"d":"€ 0"}},{"$f":"IFERROR(IF(Leadgegevens[Sluiting prognose] <>\"\",IF(Leadgegevens[Sluiting prognose] = \"November\",Leadgegevens[Gewogen prognose],0),\"\"),\"\")","v":{"v":0,"d":"€ 0"}},{"$f":"IFERROR(IF(Leadgegevens[Sluiting prognose] <>\"\",IF(Leadgegevens[Sluiting prognose] = \"December\",Leadgegevens[Gewogen prognose],0),\"\"),\"\")","v":{"v":0,"d":"€ 0"}}]
[null,{"$f":"IFERROR(IF(AND(Leadgegevens[Leadnaam] <> \"\", ROW(Verkoopprognose[Leadnaam])<>LastEntry),Leadgegevens[Leadnaam], \"\"),\"\")","v":"Alpine Ski House"},{"$f":"IFERROR(IF(Leadgegevens[Sluiting prognose] <>\"\",IF(Leadgegevens[Sluiting prognose]= \"Januari\",Leadgegevens[Gewogen prognose],0),\"\"),\"\")","v":{"v":0,"d":"€ 0"}},{"$f":"IFERROR(IF(Leadgegevens[Sluiting prognose] <>\"\",IF(Leadgegevens[Sluiting prognose] = \"Februari\",Leadgegevens[Gewogen prognose],0),\"\"),\"\")","v":{"v":0,"d":"€ 0"}},{"$f":"IFERROR(IF(Leadgegevens[Sluiting prognose] <>\"\",IF(Leadgegevens[Sluiting prognose] = \"Maart\",Leadgegevens[Gewogen prognose],0),\"\"),\"\")","v":{"v":20000,"d":"€ 20,000"}},{"$f":"IFERROR(IF(Leadgegevens[Sluiting prognose] <>\"\",IF(Leadgegevens[Sluiting prognose] = \"April\",Leadgegevens[Gewogen prognose],0),\"\"),\"\")","v":{"v":0,"d":"€ 0"}},{"$f":"IFERROR(IF(Leadgegevens[Sluiting prognose] <>\"\",IF(Leadgegevens[Sluiting prognose] = \"Mei\",Leadgegevens[Gewogen prognose],0),\"\"),\"\")","v":{"v":0,"d":"€ 0"}},{"$f":"IFERROR(IF(Leadgegevens[Sluiting prognose] <>\"\",IF(Leadgegevens[Sluiting prognose] = \"Juni\",Leadgegevens[Gewogen prognose],0),\"\"),\"\")","v":{"v":0,"d":"€ 0"}},{"$f":"IFERROR(IF(Leadgegevens[Sluiting prognose] <>\"\",IF(Leadgegevens[Sluiting prognose] = \"Juli\",Leadgegevens[Gewogen prognose],0),\"\"),\"\")","v":{"v":0,"d":"€ 0"}},{"$f":"IFERROR(IF(Leadgegevens[Sluiting prognose] <>\"\",IF(Leadgegevens[Sluiting prognose] = \"Augustus\",Leadgegevens[Gewogen prognose],0),\"\"),\"\")","v":{"v":0,"d":"€ 0"}},{"$f":"IFERROR(IF(Leadgegevens[Sluiting prognose] <>\"\",IF(Leadgegevens[Sluiting prognose] = \"September\",Leadgegevens[Gewogen prognose],0),\"\"),\"\")","v":{"v":0,"d":"€ 0"}},{"$f":"IFERROR(IF(Leadgegevens[Sluiting prognose] <>\"\",IF(Leadgegevens[Sluiting prognose] = \"Oktober\",Leadgegevens[Gewogen prognose],0),\"\"),\"\")","v":{"v":0,"d":"€ 0"}},{"$f":"IFERROR(IF(Leadgegevens[Sluiting prognose] <>\"\",IF(Leadgegevens[Sluiting prognose] = \"November\",Leadgegevens[Gewogen prognose],0),\"\"),\"\")","v":{"v":0,"d":"€ 0"}},{"$f":"IFERROR(IF(Leadgegevens[Sluiting prognose] <>\"\",IF(Leadgegevens[Sluiting prognose] = \"December\",Leadgegevens[Gewogen prognose],0),\"\"),\"\")","v":{"v":0,"d":"€ 0"}}]
[null,{"$f":"IFERROR(IF(AND(Leadgegevens[Leadnaam] <> \"\", ROW(Verkoopprognose[Leadnaam])<>LastEntry),Leadgegevens[Leadnaam], \"\"),\"\")","v":""},{"$f":"IFERROR(IF(Leadgegevens[Sluiting prognose] <>\"\",IF(Leadgegevens[Sluiting prognose]= \"Januari\",Leadgegevens[Gewogen prognose],0),\"\"),\"\")","v":""},{"$f":"IFERROR(IF(Leadgegevens[Sluiting prognose] <>\"\",IF(Leadgegevens[Sluiting prognose] = \"Februari\",Leadgegevens[Gewogen prognose],0),\"\"),\"\")","v":""},{"$f":"IFERROR(IF(Leadgegevens[Sluiting prognose] <>\"\",IF(Leadgegevens[Sluiting prognose] = \"Maart\",Leadgegevens[Gewogen prognose],0),\"\"),\"\")","v":""},{"$f":"IFERROR(IF(Leadgegevens[Sluiting prognose] <>\"\",IF(Leadgegevens[Sluiting prognose] = \"April\",Leadgegevens[Gewogen prognose],0),\"\"),\"\")","v":""},{"$f":"IFERROR(IF(Leadgegevens[Sluiting prognose] <>\"\",IF(Leadgegevens[Sluiting prognose] = \"Mei\",Leadgegevens[Gewogen prognose],0),\"\"),\"\")","v":""},{"$f":"IFERROR(IF(Leadgegevens[Sluiting prognose] <>\"\",IF(Leadgegevens[Sluiting prognose] = \"Juni\",Leadgegevens[Gewogen prognose],0),\"\"),\"\")","v":""},{"$f":"IFERROR(IF(Leadgegevens[Sluiting prognose] <>\"\",IF(Leadgegevens[Sluiting prognose] = \"Juli\",Leadgegevens[Gewogen prognose],0),\"\"),\"\")","v":""},{"$f":"IFERROR(IF(Leadgegevens[Sluiting prognose] <>\"\",IF(Leadgegevens[Sluiting prognose] = \"Augustus\",Leadgegevens[Gewogen prognose],0),\"\"),\"\")","v":""},{"$f":"IFERROR(IF(Leadgegevens[Sluiting prognose] <>\"\",IF(Leadgegevens[Sluiting prognose] = \"September\",Leadgegevens[Gewogen prognose],0),\"\"),\"\")","v":""},{"$f":"IFERROR(IF(Leadgegevens[Sluiting prognose] <>\"\",IF(Leadgegevens[Sluiting prognose] = \"Oktober\",Leadgegevens[Gewogen prognose],0),\"\"),\"\")","v":""},{"$f":"IFERROR(IF(Leadgegevens[Sluiting prognose] <>\"\",IF(Leadgegevens[Sluiting prognose] = \"November\",Leadgegevens[Gewogen prognose],0),\"\"),\"\")","v":""},{"$f":"IFERROR(IF(Leadgegevens[Sluiting prognose] <>\"\",IF(Leadgegevens[Sluiting prognose] = \"December\",Leadgegevens[Gewogen prognose],0),\"\"),\"\")","v":""}]
[null,{"$f":"IFERROR(IF(AND(Leadgegevens[Leadnaam] <> \"\", ROW(Verkoopprognose[Leadnaam])<>LastEntry),Leadgegevens[Leadnaam], \"\"),\"\")","v":""},{"$f":"IFERROR(IF(Leadgegevens[Sluiting prognose] <>\"\",IF(Leadgegevens[Sluiting prognose]= \"Januari\",Leadgegevens[Gewogen prognose],0),\"\"),\"\")","v":""},{"$f":"IFERROR(IF(Leadgegevens[Sluiting prognose] <>\"\",IF(Leadgegevens[Sluiting prognose] = \"Februari\",Leadgegevens[Gewogen prognose],0),\"\"),\"\")","v":""},{"$f":"IFERROR(IF(Leadgegevens[Sluiting prognose] <>\"\",IF(Leadgegevens[Sluiting prognose] = \"Maart\",Leadgegevens[Gewogen prognose],0),\"\"),\"\")","v":""},{"$f":"IFERROR(IF(Leadgegevens[Sluiting prognose] <>\"\",IF(Leadgegevens[Sluiting prognose] = \"April\",Leadgegevens[Gewogen prognose],0),\"\"),\"\")","v":""},{"$f":"IFERROR(IF(Leadgegevens[Sluiting prognose] <>\"\",IF(Leadgegevens[Sluiting prognose] = \"Mei\",Leadgegevens[Gewogen prognose],0),\"\"),\"\")","v":""},{"$f":"IFERROR(IF(Leadgegevens[Sluiting prognose] <>\"\",IF(Leadgegevens[Sluiting prognose] = \"Juni\",Leadgegevens[Gewogen prognose],0),\"\"),\"\")","v":""},{"$f":"IFERROR(IF(Leadgegevens[Sluiting prognose] <>\"\",IF(Leadgegevens[Sluiting prognose] = \"Juli\",Leadgegevens[Gewogen prognose],0),\"\"),\"\")","v":""},{"$f":"IFERROR(IF(Leadgegevens[Sluiting prognose] <>\"\",IF(Leadgegevens[Sluiting prognose] = \"Augustus\",Leadgegevens[Gewogen prognose],0),\"\"),\"\")","v":""},{"$f":"IFERROR(IF(Leadgegevens[Sluiting prognose] <>\"\",IF(Leadgegevens[Sluiting prognose] = \"September\",Leadgegevens[Gewogen prognose],0),\"\"),\"\")","v":""},{"$f":"IFERROR(IF(Leadgegevens[Sluiting prognose] <>\"\",IF(Leadgegevens[Sluiting prognose] = \"Oktober\",Leadgegevens[Gewogen prognose],0),\"\"),\"\")","v":""},{"$f":"IFERROR(IF(Leadgegevens[Sluiting prognose] <>\"\",IF(Leadgegevens[Sluiting prognose] = \"November\",Leadgegevens[Gewogen prognose],0),\"\"),\"\")","v":""},{"$f":"IFERROR(IF(Leadgegevens[Sluiting prognose] <>\"\",IF(Leadgegevens[Sluiting prognose] = \"December\",Leadgegevens[Gewogen prognose],0),\"\"),\"\")","v":""}]
[null,{"$f":"IFERROR(IF(AND(Leadgegevens[Leadnaam] <> \"\", ROW(Verkoopprognose[Leadnaam])<>LastEntry),Leadgegevens[Leadnaam], \"\"),\"\")","v":""},{"$f":"IFERROR(IF(Leadgegevens[Sluiting prognose] <>\"\",IF(Leadgegevens[Sluiting prognose]= \"Januari\",Leadgegevens[Gewogen prognose],0),\"\"),\"\")","v":""},{"$f":"IFERROR(IF(Leadgegevens[Sluiting prognose] <>\"\",IF(Leadgegevens[Sluiting prognose] = \"Februari\",Leadgegevens[Gewogen prognose],0),\"\"),\"\")","v":""},{"$f":"IFERROR(IF(Leadgegevens[Sluiting prognose] <>\"\",IF(Leadgegevens[Sluiting prognose] = \"Maart\",Leadgegevens[Gewogen prognose],0),\"\"),\"\")","v":""},{"$f":"IFERROR(IF(Leadgegevens[Sluiting prognose] <>\"\",IF(Leadgegevens[Sluiting prognose] = \"April\",Leadgegevens[Gewogen prognose],0),\"\"),\"\")","v":""},{"$f":"IFERROR(IF(Leadgegevens[Sluiting prognose] <>\"\",IF(Leadgegevens[Sluiting prognose] = \"Mei\",Leadgegevens[Gewogen prognose],0),\"\"),\"\")","v":""},{"$f":"IFERROR(IF(Leadgegevens[Sluiting prognose] <>\"\",IF(Leadgegevens[Sluiting prognose] = \"Juni\",Leadgegevens[Gewogen prognose],0),\"\"),\"\")","v":""},{"$f":"IFERROR(IF(Leadgegevens[Sluiting prognose] <>\"\",IF(Leadgegevens[Sluiting prognose] = \"Juli\",Leadgegevens[Gewogen prognose],0),\"\"),\"\")","v":""},{"$f":"IFERROR(IF(Leadgegevens[Sluiting prognose] <>\"\",IF(Leadgegevens[Sluiting prognose] = \"Augustus\",Leadgegevens[Gewogen prognose],0),\"\"),\"\")","v":""},{"$f":"IFERROR(IF(Leadgegevens[Sluiting prognose] <>\"\",IF(Leadgegevens[Sluiting prognose] = \"September\",Leadgegevens[Gewogen prognose],0),\"\"),\"\")","v":""},{"$f":"IFERROR(IF(Leadgegevens[Sluiting prognose] <>\"\",IF(Leadgegevens[Sluiting prognose] = \"Oktober\",Leadgegevens[Gewogen prognose],0),\"\"),\"\")","v":""},{"$f":"IFERROR(IF(Leadgegevens[Sluiting prognose] <>\"\",IF(Leadgegevens[Sluiting prognose] = \"November\",Leadgegevens[Gewogen prognose],0),\"\"),\"\")","v":""},{"$f":"IFERROR(IF(Leadgegevens[Sluiting prognose] <>\"\",IF(Leadgegevens[Sluiting prognose] = \"December\",Leadgegevens[Gewogen prognose],0),\"\"),\"\")","v":""}]
[null,{"$f":"IFERROR(IF(AND(Leadgegevens[Leadnaam] <> \"\", ROW(Verkoopprognose[Leadnaam])<>LastEntry),Leadgegevens[Leadnaam], \"\"),\"\")","v":""},{"$f":"IFERROR(IF(Leadgegevens[Sluiting prognose] <>\"\",IF(Leadgegevens[Sluiting prognose]= \"Januari\",Leadgegevens[Gewogen prognose],0),\"\"),\"\")","v":""},{"$f":"IFERROR(IF(Leadgegevens[Sluiting prognose] <>\"\",IF(Leadgegevens[Sluiting prognose] = \"Februari\",Leadgegevens[Gewogen prognose],0),\"\"),\"\")","v":""},{"$f":"IFERROR(IF(Leadgegevens[Sluiting prognose] <>\"\",IF(Leadgegevens[Sluiting prognose] = \"Maart\",Leadgegevens[Gewogen prognose],0),\"\"),\"\")","v":""},{"$f":"IFERROR(IF(Leadgegevens[Sluiting prognose] <>\"\",IF(Leadgegevens[Sluiting prognose] = \"April\",Leadgegevens[Gewogen prognose],0),\"\"),\"\")","v":""},{"$f":"IFERROR(IF(Leadgegevens[Sluiting prognose] <>\"\",IF(Leadgegevens[Sluiting prognose] = \"Mei\",Leadgegevens[Gewogen prognose],0),\"\"),\"\")","v":""},{"$f":"IFERROR(IF(Leadgegevens[Sluiting prognose] <>\"\",IF(Leadgegevens[Sluiting prognose] = \"Juni\",Leadgegevens[Gewogen prognose],0),\"\"),\"\")","v":""},{"$f":"IFERROR(IF(Leadgegevens[Sluiting prognose] <>\"\",IF(Leadgegevens[Sluiting prognose] = \"Juli\",Leadgegevens[Gewogen prognose],0),\"\"),\"\")","v":""},{"$f":"IFERROR(IF(Leadgegevens[Sluiting prognose] <>\"\",IF(Leadgegevens[Sluiting prognose] = \"Augustus\",Leadgegevens[Gewogen prognose],0),\"\"),\"\")","v":""},{"$f":"IFERROR(IF(Leadgegevens[Sluiting prognose] <>\"\",IF(Leadgegevens[Sluiting prognose] = \"September\",Leadgegevens[Gewogen prognose],0),\"\"),\"\")","v":""},{"$f":"IFERROR(IF(Leadgegevens[Sluiting prognose] <>\"\",IF(Leadgegevens[Sluiting prognose] = \"Oktober\",Leadgegevens[Gewogen prognose],0),\"\"),\"\")","v":""},{"$f":"IFERROR(IF(Leadgegevens[Sluiting prognose] <>\"\",IF(Leadgegevens[Sluiting prognose] = \"November\",Leadgegevens[Gewogen prognose],0),\"\"),\"\")","v":""},{"$f":"IFERROR(IF(Leadgegevens[Sluiting prognose] <>\"\",IF(Leadgegevens[Sluiting prognose] = \"December\",Leadgegevens[Gewogen prognose],0),\"\"),\"\")","v":""}]
[null,{"$f":"IFERROR(IF(AND(Leadgegevens[Leadnaam] <> \"\", ROW(Verkoopprognose[Leadnaam])<>LastEntry),Leadgegevens[Leadnaam], \"\"),\"\")","v":""},{"$f":"IFERROR(IF(Leadgegevens[Sluiting prognose] <>\"\",IF(Leadgegevens[Sluiting prognose]= \"Januari\",Leadgegevens[Gewogen prognose],0),\"\"),\"\")","v":""},{"$f":"IFERROR(IF(Leadgegevens[Sluiting prognose] <>\"\",IF(Leadgegevens[Sluiting prognose] = \"Februari\",Leadgegevens[Gewogen prognose],0),\"\"),\"\")","v":""},{"$f":"IFERROR(IF(Leadgegevens[Sluiting prognose] <>\"\",IF(Leadgegevens[Sluiting prognose] = \"Maart\",Leadgegevens[Gewogen prognose],0),\"\"),\"\")","v":""},{"$f":"IFERROR(IF(Leadgegevens[Sluiting prognose] <>\"\",IF(Leadgegevens[Sluiting prognose] = \"April\",Leadgegevens[Gewogen prognose],0),\"\"),\"\")","v":""},{"$f":"IFERROR(IF(Leadgegevens[Sluiting prognose] <>\"\",IF(Leadgegevens[Sluiting prognose] = \"Mei\",Leadgegevens[Gewogen prognose],0),\"\"),\"\")","v":""},{"$f":"IFERROR(IF(Leadgegevens[Sluiting prognose] <>\"\",IF(Leadgegevens[Sluiting prognose] = \"Juni\",Leadgegevens[Gewogen prognose],0),\"\"),\"\")","v":""},{"$f":"IFERROR(IF(Leadgegevens[Sluiting prognose] <>\"\",IF(Leadgegevens[Sluiting prognose] = \"Juli\",Leadgegevens[Gewogen prognose],0),\"\"),\"\")","v":""},{"$f":"IFERROR(IF(Leadgegevens[Sluiting prognose] <>\"\",IF(Leadgegevens[Sluiting prognose] = \"Augustus\",Leadgegevens[Gewogen prognose],0),\"\"),\"\")","v":""},{"$f":"IFERROR(IF(Leadgegevens[Sluiting prognose] <>\"\",IF(Leadgegevens[Sluiting prognose] = \"September\",Leadgegevens[Gewogen prognose],0),\"\"),\"\")","v":""},{"$f":"IFERROR(IF(Leadgegevens[Sluiting prognose] <>\"\",IF(Leadgegevens[Sluiting prognose] = \"Oktober\",Leadgegevens[Gewogen prognose],0),\"\"),\"\")","v":""},{"$f":"IFERROR(IF(Leadgegevens[Sluiting prognose] <>\"\",IF(Leadgegevens[Sluiting prognose] = \"November\",Leadgegevens[Gewogen prognose],0),\"\"),\"\")","v":""},{"$f":"IFERROR(IF(Leadgegevens[Sluiting prognose] <>\"\",IF(Leadgegevens[Sluiting prognose] = \"December\",Leadgegevens[Gewogen prognose],0),\"\"),\"\")","v":""}]
[null,{"$f":"IFERROR(IF(AND(Leadgegevens[Leadnaam] <> \"\", ROW(Verkoopprognose[Leadnaam])<>LastEntry),Leadgegevens[Leadnaam], \"\"),\"\")","v":""},{"$f":"IFERROR(IF(Leadgegevens[Sluiting prognose] <>\"\",IF(Leadgegevens[Sluiting prognose]= \"Januari\",Leadgegevens[Gewogen prognose],0),\"\"),\"\")","v":""},{"$f":"IFERROR(IF(Leadgegevens[Sluiting prognose] <>\"\",IF(Leadgegevens[Sluiting prognose] = \"Februari\",Leadgegevens[Gewogen prognose],0),\"\"),\"\")","v":""},{"$f":"IFERROR(IF(Leadgegevens[Sluiting prognose] <>\"\",IF(Leadgegevens[Sluiting prognose] = \"Maart\",Leadgegevens[Gewogen prognose],0),\"\"),\"\")","v":""},{"$f":"IFERROR(IF(Leadgegevens[Sluiting prognose] <>\"\",IF(Leadgegevens[Sluiting prognose] = \"April\",Leadgegevens[Gewogen prognose],0),\"\"),\"\")","v":""},{"$f":"IFERROR(IF(Leadgegevens[Sluiting prognose] <>\"\",IF(Leadgegevens[Sluiting prognose] = \"Mei\",Leadgegevens[Gewogen prognose],0),\"\"),\"\")","v":""},{"$f":"IFERROR(IF(Leadgegevens[Sluiting prognose] <>\"\",IF(Leadgegevens[Sluiting prognose] = \"Juni\",Leadgegevens[Gewogen prognose],0),\"\"),\"\")","v":""},{"$f":"IFERROR(IF(Leadgegevens[Sluiting prognose] <>\"\",IF(Leadgegevens[Sluiting prognose] = \"Juli\",Leadgegevens[Gewogen prognose],0),\"\"),\"\")","v":""},{"$f":"IFERROR(IF(Leadgegevens[Sluiting prognose] <>\"\",IF(Leadgegevens[Sluiting prognose] = \"Augustus\",Leadgegevens[Gewogen prognose],0),\"\"),\"\")","v":""},{"$f":"IFERROR(IF(Leadgegevens[Sluiting prognose] <>\"\",IF(Leadgegevens[Sluiting prognose] = \"September\",Leadgegevens[Gewogen prognose],0),\"\"),\"\")","v":""},{"$f":"IFERROR(IF(Leadgegevens[Sluiting prognose] <>\"\",IF(Leadgegevens[Sluiting prognose] = \"Oktober\",Leadgegevens[Gewogen prognose],0),\"\"),\"\")","v":""},{"$f":"IFERROR(IF(Leadgegevens[Sluiting prognose] <>\"\",IF(Leadgegevens[Sluiting prognose] = \"November\",Leadgegevens[Gewogen prognose],0),\"\"),\"\")","v":""},{"$f":"IFERROR(IF(Leadgegevens[Sluiting prognose] <>\"\",IF(Leadgegevens[Sluiting prognose] = \"December\",Leadgegevens[Gewogen prognose],0),\"\"),\"\")","v":""}]
[null,{"$f":"IFERROR(IF(AND(Leadgegevens[Leadnaam] <> \"\", ROW(Verkoopprognose[Leadnaam])<>LastEntry),Leadgegevens[Leadnaam], \"\"),\"\")","v":""},{"$f":"IFERROR(IF(Leadgegevens[Sluiting prognose] <>\"\",IF(Leadgegevens[Sluiting prognose]= \"Januari\",Leadgegevens[Gewogen prognose],0),\"\"),\"\")","v":""},{"$f":"IFERROR(IF(Leadgegevens[Sluiting prognose] <>\"\",IF(Leadgegevens[Sluiting prognose] = \"Februari\",Leadgegevens[Gewogen prognose],0),\"\"),\"\")","v":""},{"$f":"IFERROR(IF(Leadgegevens[Sluiting prognose] <>\"\",IF(Leadgegevens[Sluiting prognose] = \"Maart\",Leadgegevens[Gewogen prognose],0),\"\"),\"\")","v":""},{"$f":"IFERROR(IF(Leadgegevens[Sluiting prognose] <>\"\",IF(Leadgegevens[Sluiting prognose] = \"April\",Leadgegevens[Gewogen prognose],0),\"\"),\"\")","v":""},{"$f":"IFERROR(IF(Leadgegevens[Sluiting prognose] <>\"\",IF(Leadgegevens[Sluiting prognose] = \"Mei\",Leadgegevens[Gewogen prognose],0),\"\"),\"\")","v":""},{"$f":"IFERROR(IF(Leadgegevens[Sluiting prognose] <>\"\",IF(Leadgegevens[Sluiting prognose] = \"Juni\",Leadgegevens[Gewogen prognose],0),\"\"),\"\")","v":""},{"$f":"IFERROR(IF(Leadgegevens[Sluiting prognose] <>\"\",IF(Leadgegevens[Sluiting prognose] = \"Juli\",Leadgegevens[Gewogen prognose],0),\"\"),\"\")","v":""},{"$f":"IFERROR(IF(Leadgegevens[Sluiting prognose] <>\"\",IF(Leadgegevens[Sluiting prognose] = \"Augustus\",Leadgegevens[Gewogen prognose],0),\"\"),\"\")","v":""},{"$f":"IFERROR(IF(Leadgegevens[Sluiting prognose] <>\"\",IF(Leadgegevens[Sluiting prognose] = \"September\",Leadgegevens[Gewogen prognose],0),\"\"),\"\")","v":""},{"$f":"IFERROR(IF(Leadgegevens[Sluiting prognose] <>\"\",IF(Leadgegevens[Sluiting prognose] = \"Oktober\",Leadgegevens[Gewogen prognose],0),\"\"),\"\")","v":""},{"$f":"IFERROR(IF(Leadgegevens[Sluiting prognose] <>\"\",IF(Leadgegevens[Sluiting prognose] = \"November\",Leadgegevens[Gewogen prognose],0),\"\"),\"\")","v":""},{"$f":"IFERROR(IF(Leadgegevens[Sluiting prognose] <>\"\",IF(Leadgegevens[Sluiting prognose] = \"December\",Leadgegevens[Gewogen prognose],0),\"\"),\"\")","v":""}]
[null,{"$f":"IFERROR(IF(AND(Leadgegevens[Leadnaam] <> \"\", ROW(Verkoopprognose[Leadnaam])<>LastEntry),Leadgegevens[Leadnaam], \"\"),\"\")","v":""},{"$f":"IFERROR(IF(Leadgegevens[Sluiting prognose] <>\"\",IF(Leadgegevens[Sluiting prognose]= \"Januari\",Leadgegevens[Gewogen prognose],0),\"\"),\"\")","v":""},{"$f":"IFERROR(IF(Leadgegevens[Sluiting prognose] <>\"\",IF(Leadgegevens[Sluiting prognose] = \"Februari\",Leadgegevens[Gewogen prognose],0),\"\"),\"\")","v":""},{"$f":"IFERROR(IF(Leadgegevens[Sluiting prognose] <>\"\",IF(Leadgegevens[Sluiting prognose] = \"Maart\",Leadgegevens[Gewogen prognose],0),\"\"),\"\")","v":""},{"$f":"IFERROR(IF(Leadgegevens[Sluiting prognose] <>\"\",IF(Leadgegevens[Sluiting prognose] = \"April\",Leadgegevens[Gewogen prognose],0),\"\"),\"\")","v":""},{"$f":"IFERROR(IF(Leadgegevens[Sluiting prognose] <>\"\",IF(Leadgegevens[Sluiting prognose] = \"Mei\",Leadgegevens[Gewogen prognose],0),\"\"),\"\")","v":""},{"$f":"IFERROR(IF(Leadgegevens[Sluiting prognose] <>\"\",IF(Leadgegevens[Sluiting prognose] = \"Juni\",Leadgegevens[Gewogen prognose],0),\"\"),\"\")","v":""},{"$f":"IFERROR(IF(Leadgegevens[Sluiting prognose] <>\"\",IF(Leadgegevens[Sluiting prognose] = \"Juli\",Leadgegevens[Gewogen prognose],0),\"\"),\"\")","v":""},{"$f":"IFERROR(IF(Leadgegevens[Sluiting prognose] <>\"\",IF(Leadgegevens[Sluiting prognose] = \"Augustus\",Leadgegevens[Gewogen prognose],0),\"\"),\"\")","v":""},{"$f":"IFERROR(IF(Leadgegevens[Sluiting prognose] <>\"\",IF(Leadgegevens[Sluiting prognose] = \"September\",Leadgegevens[Gewogen prognose],0),\"\"),\"\")","v":""},{"$f":"IFERROR(IF(Leadgegevens[Sluiting prognose] <>\"\",IF(Leadgegevens[Sluiting prognose] = \"Oktober\",Leadgegevens[Gewogen prognose],0),\"\"),\"\")","v":""},{"$f":"IFERROR(IF(Leadgegevens[Sluiting prognose] <>\"\",IF(Leadgegevens[Sluiting prognose] = \"November\",Leadgegevens[Gewogen prognose],0),\"\"),\"\")","v":""},{"$f":"IFERROR(IF(Leadgegevens[Sluiting prognose] <>\"\",IF(Leadgegevens[Sluiting prognose] = \"December\",Leadgegevens[Gewogen prognose],0),\"\"),\"\")","v":""}]
[null,{"$f":"IFERROR(IF(AND(Leadgegevens[Leadnaam] <> \"\", ROW(Verkoopprognose[Leadnaam])<>LastEntry),Leadgegevens[Leadnaam], \"\"),\"\")","v":""},{"$f":"IFERROR(IF(Leadgegevens[Sluiting prognose] <>\"\",IF(Leadgegevens[Sluiting prognose]= \"Januari\",Leadgegevens[Gewogen prognose],0),\"\"),\"\")","v":""},{"$f":"IFERROR(IF(Leadgegevens[Sluiting prognose] <>\"\",IF(Leadgegevens[Sluiting prognose] = \"Februari\",Leadgegevens[Gewogen prognose],0),\"\"),\"\")","v":""},{"$f":"IFERROR(IF(Leadgegevens[Sluiting prognose] <>\"\",IF(Leadgegevens[Sluiting prognose] = \"Maart\",Leadgegevens[Gewogen prognose],0),\"\"),\"\")","v":""},{"$f":"IFERROR(IF(Leadgegevens[Sluiting prognose] <>\"\",IF(Leadgegevens[Sluiting prognose] = \"April\",Leadgegevens[Gewogen prognose],0),\"\"),\"\")","v":""},{"$f":"IFERROR(IF(Leadgegevens[Sluiting prognose] <>\"\",IF(Leadgegevens[Sluiting prognose] = \"Mei\",Leadgegevens[Gewogen prognose],0),\"\"),\"\")","v":""},{"$f":"IFERROR(IF(Leadgegevens[Sluiting prognose] <>\"\",IF(Leadgegevens[Sluiting prognose] = \"Juni\",Leadgegevens[Gewogen prognose],0),\"\"),\"\")","v":""},{"$f":"IFERROR(IF(Leadgegevens[Sluiting prognose] <>\"\",IF(Leadgegevens[Sluiting prognose] = \"Juli\",Leadgegevens[Gewogen prognose],0),\"\"),\"\")","v":""},{"$f":"IFERROR(IF(Leadgegevens[Sluiting prognose] <>\"\",IF(Leadgegevens[Sluiting prognose] = \"Augustus\",Leadgegevens[Gewogen prognose],0),\"\"),\"\")","v":""},{"$f":"IFERROR(IF(Leadgegevens[Sluiting prognose] <>\"\",IF(Leadgegevens[Sluiting prognose] = \"September\",Leadgegevens[Gewogen prognose],0),\"\"),\"\")","v":""},{"$f":"IFERROR(IF(Leadgegevens[Sluiting prognose] <>\"\",IF(Leadgegevens[Sluiting prognose] = \"Oktober\",Leadgegevens[Gewogen prognose],0),\"\"),\"\")","v":""},{"$f":"IFERROR(IF(Leadgegevens[Sluiting prognose] <>\"\",IF(Leadgegevens[Sluiting prognose] = \"November\",Leadgegevens[Gewogen prognose],0),\"\"),\"\")","v":""},{"$f":"IFERROR(IF(Leadgegevens[Sluiting prognose] <>\"\",IF(Leadgegevens[Sluiting prognose] = \"December\",Leadgegevens[Gewogen prognose],0),\"\"),\"\")","v":""}]
[null,{"$f":"IFERROR(IF(AND(Leadgegevens[Leadnaam] <> \"\", ROW(Verkoopprognose[Leadnaam])<>LastEntry),Leadgegevens[Leadnaam], \"\"),\"\")","v":""},{"$f":"IFERROR(IF(Leadgegevens[Sluiting prognose] <>\"\",IF(Leadgegevens[Sluiting prognose]= \"Januari\",Leadgegevens[Gewogen prognose],0),\"\"),\"\")","v":""},{"$f":"IFERROR(IF(Leadgegevens[Sluiting prognose] <>\"\",IF(Leadgegevens[Sluiting prognose] = \"Februari\",Leadgegevens[Gewogen prognose],0),\"\"),\"\")","v":""},{"$f":"IFERROR(IF(Leadgegevens[Sluiting prognose] <>\"\",IF(Leadgegevens[Sluiting prognose] = \"Maart\",Leadgegevens[Gewogen prognose],0),\"\"),\"\")","v":""},{"$f":"IFERROR(IF(Leadgegevens[Sluiting prognose] <>\"\",IF(Leadgegevens[Sluiting prognose] = \"April\",Leadgegevens[Gewogen prognose],0),\"\"),\"\")","v":""},{"$f":"IFERROR(IF(Leadgegevens[Sluiting prognose] <>\"\",IF(Leadgegevens[Sluiting prognose] = \"Mei\",Leadgegevens[Gewogen prognose],0),\"\"),\"\")","v":""},{"$f":"IFERROR(IF(Leadgegevens[Sluiting prognose] <>\"\",IF(Leadgegevens[Sluiting prognose] = \"Juni\",Leadgegevens[Gewogen prognose],0),\"\"),\"\")","v":""},{"$f":"IFERROR(IF(Leadgegevens[Sluiting prognose] <>\"\",IF(Leadgegevens[Sluiting prognose] = \"Juli\",Leadgegevens[Gewogen prognose],0),\"\"),\"\")","v":""},{"$f":"IFERROR(IF(Leadgegevens[Sluiting prognose] <>\"\",IF(Leadgegevens[Sluiting prognose] = \"Augustus\",Leadgegevens[Gewogen prognose],0),\"\"),\"\")","v":""},{"$f":"IFERROR(IF(Leadgegevens[Sluiting prognose] <>\"\",IF(Leadgegevens[Sluiting prognose] = \"September\",Leadgegevens[Gewogen prognose],0),\"\"),\"\")","v":""},{"$f":"IFERROR(IF(Leadgegevens[Sluiting prognose] <>\"\",IF(Leadgegevens[Sluiting prognose] = \"Oktober\",Leadgegevens[Gewogen prognose],0),\"\"),\"\")","v":""},{"$f":"IFERROR(IF(Leadgegevens[Sluiting prognose] <>\"\",IF(Leadgegevens[Sluiting prognose] = \"November\",Leadgegevens[Gewogen prognose],0),\"\"),\"\")","v":""},{"$f":"IFERROR(IF(Leadgegevens[Sluiting prognose] <>\"\",IF(Leadgegevens[Sluiting prognose] = \"December\",Leadgegevens[Gewogen prognose],0),\"\"),\"\")","v":""}]
[null,{"$f":"IFERROR(IF(AND(Leadgegevens[Leadnaam] <> \"\", ROW(Verkoopprognose[Leadnaam])<>LastEntry),Leadgegevens[Leadnaam], \"\"),\"\")","v":""},{"$f":"IFERROR(IF(Leadgegevens[Sluiting prognose] <>\"\",IF(Leadgegevens[Sluiting prognose]= \"Januari\",Leadgegevens[Gewogen prognose],0),\"\"),\"\")","v":""},{"$f":"IFERROR(IF(Leadgegevens[Sluiting prognose] <>\"\",IF(Leadgegevens[Sluiting prognose] = \"Februari\",Leadgegevens[Gewogen prognose],0),\"\"),\"\")","v":""},{"$f":"IFERROR(IF(Leadgegevens[Sluiting prognose] <>\"\",IF(Leadgegevens[Sluiting prognose] = \"Maart\",Leadgegevens[Gewogen prognose],0),\"\"),\"\")","v":""},{"$f":"IFERROR(IF(Leadgegevens[Sluiting prognose] <>\"\",IF(Leadgegevens[Sluiting prognose] = \"April\",Leadgegevens[Gewogen prognose],0),\"\"),\"\")","v":""},{"$f":"IFERROR(IF(Leadgegevens[Sluiting prognose] <>\"\",IF(Leadgegevens[Sluiting prognose] = \"Mei\",Leadgegevens[Gewogen prognose],0),\"\"),\"\")","v":""},{"$f":"IFERROR(IF(Leadgegevens[Sluiting prognose] <>\"\",IF(Leadgegevens[Sluiting prognose] = \"Juni\",Leadgegevens[Gewogen prognose],0),\"\"),\"\")","v":""},{"$f":"IFERROR(IF(Leadgegevens[Sluiting prognose] <>\"\",IF(Leadgegevens[Sluiting prognose] = \"Juli\",Leadgegevens[Gewogen prognose],0),\"\"),\"\")","v":""},{"$f":"IFERROR(IF(Leadgegevens[Sluiting prognose] <>\"\",IF(Leadgegevens[Sluiting prognose] = \"Augustus\",Leadgegevens[Gewogen prognose],0),\"\"),\"\")","v":""},{"$f":"IFERROR(IF(Leadgegevens[Sluiting prognose] <>\"\",IF(Leadgegevens[Sluiting prognose] = \"September\",Leadgegevens[Gewogen prognose],0),\"\"),\"\")","v":""},{"$f":"IFERROR(IF(Leadgegevens[Sluiting prognose] <>\"\",IF(Leadgegevens[Sluiting prognose] = \"Oktober\",Leadgegevens[Gewogen prognose],0),\"\"),\"\")","v":""},{"$f":"IFERROR(IF(Leadgegevens[Sluiting prognose] <>\"\",IF(Leadgegevens[Sluiting prognose] = \"November\",Leadgegevens[Gewogen prognose],0),\"\"),\"\")","v":""},{"$f":"IFERROR(IF(Leadgegevens[Sluiting prognose] <>\"\",IF(Leadgegevens[Sluiting prognose] = \"December\",Leadgegevens[Gewogen prognose],0),\"\"),\"\")","v":""}]
[null,"Totaal",{"$f":"SUBTOTAL(109,Verkoopprognose[Januari \nPrognose])","v":{"v":270000,"d":"€ 270,000"}},{"$f":"SUBTOTAL(109,Verkoopprognose[Februari \nPrognose])","v":{"v":20000,"d":"€ 20,000"}},{"$f":"SUBTOTAL(109,Verkoopprognose[Maart \nPrognose])","v":{"v":20000,"d":"€ 20,000"}},{"$f":"SUBTOTAL(109,Verkoopprognose[April \nPrognose])","v":{"v":0,"d":"€ 0"}},{"$f":"SUBTOTAL(109,Verkoopprognose[Mei \nPrognose])","v":{"v":0,"d":"€ 0"}},{"$f":"SUBTOTAL(109,Verkoopprognose[Juni \nPrognose])","v":{"v":0,"d":"€ 0"}},{"$f":"SUBTOTAL(109,Verkoopprognose[Juli Prognose])","v":{"v":0,"d":"€ 0"}},{"$f":"SUBTOTAL(109,Verkoopprognose[Augustus \nPrognose])","v":{"v":0,"d":"€ 0"}},{"$f":"SUBTOTAL(109,Verkoopprognose[September \nPrognose])","v":{"v":0,"d":"€ 0"}},{"$f":"SUBTOTAL(109,Verkoopprognose[Oktober \nPrognose])","v":{"v":0,"d":"€ 0"}},{"$f":"SUBTOTAL(109,Verkoopprognose[November \nPrognose])","v":{"v":0,"d":"€ 0"}},{"$f":"SUBTOTAL(109,Verkoopprognose[December \nPrognose])","v":{"v":0,"d":"€ 0"}}]
[null,"Cumulatief totaal",{"$f":"C20","v":{"v":270000,"d":"€ 270,000"}},{"$f":"C21+D20","v":{"v":290000,"d":"€ 290,000"}},{"$f":"D21+E20","v":{"v":310000,"d":"€ 310,000"}},{"$f":"E21+F20","v":{"v":310000,"d":"€ 310,000"}},{"$f":"F21+G20","v":{"v":310000,"d":"€ 310,000"}},{"$f":"G21+H20","v":{"v":310000,"d":"€ 310,000"}},{"$f":"H21+I20","v":{"v":310000,"d":"€ 310,000"}},{"$f":"I21+J20","v":{"v":310000,"d":"€ 310,000"}},{"$f":"J21+K20","v":{"v":310000,"d":"€ 310,000"}},{"$f":"K21+L20","v":{"v":310000,"d":"€ 310,000"}},{"$f":"L21+M20","v":{"v":310000,"d":"€ 310,000"}},{"$f":"M21+N20","v":{"v":310000,"d":"€ 310,000"}}]

{"sheet":"Maandelijks gewogen prognose","index":2,"n_rows":3,"n_cols":2,"rows_kept":3}
[null,{"$f":"Bedrijfsnaam","v":"Bedrijfsnaam"}]
[null,"Maandelijks gewogen prognose"]
[null," "]